[Event "Titled Tuesday Blitz December 13 Early 2022"]
[White "Rodriguez Fontecha, Marcos"]
[Black "Bashirli, Saadat"]
[WhiteFideId "2256576"]
[BlackFideId "13429990"]
[WhiteElo "2263"]
[BlackElo "1408"]
[Result "0-1"]
[Round "02"]
[TimeControl "180+1"]
[Date "2022.12.14"]
[WhiteClock "0:00:06"]
[BlackClock "0:00:04"]

1. d4 {[%clk 0:02:58]}  d5 {[%clk 0:02:58]} 2. Bf4 {[%clk 0:02:57]}  c5 {[%clk 0:02:56]} 3. e4 {[%clk 0:02:56]}  dxe4 {[%clk 0:02:45]} 4. d5 {[%clk 0:02:57]}  a6 {[%clk 0:02:44]} 5. Nc3 {[%clk 0:02:48]}  Nf6 {[%clk 0:02:43]} 6. Nge2 {[%clk 0:02:46]}  g6 {[%clk 0:02:40]} 7. Ng3 {[%clk 0:02:45]}  Bg7 {[%clk 0:02:33]} 8. a4 {[%clk 0:02:40]}  O-O {[%clk 0:02:31]} 9. Bc4 {[%clk 0:02:40]}  Nbd7 {[%clk 0:02:27]} 10. O-O {[%clk 0:02:35]}  b6 {[%clk 0:02:21]} 11. Ngxe4 {[%clk 0:02:07]}  Nxe4 {[%clk 0:02:19]} 12. Nxe4 {[%clk 0:02:08]}  Bxb2 {[%clk 0:02:08]} 13. Rb1 {[%clk 0:02:08]}  Bg7 {[%clk 0:02:07]} 14. Re1 {[%clk 0:02:01]}  Nf6 {[%clk 0:02:04]} 15. d6 {[%clk 0:01:51]}  exd6 {[%clk 0:01:22]} 16. Nxd6 {[%clk 0:01:36]}  Bd7 {[%clk 0:01:06]} 17. Nb7 {[%clk 0:01:18]}  Qc8 {[%clk 0:01:00]} 18. Rxb6 {[%clk 0:01:19]}  Bxa4 {[%clk 0:00:55]} 19. Re7 {[%clk 0:00:47]}  Qf5 {[%clk 0:00:38]} 20. Bxf7+ {[%clk 0:00:39]}  Kh8 {[%clk 0:00:20]} 21. g3 {[%clk 0:00:38]}  Bxc2 {[%clk 0:00:19]} 22. Qc1 {[%clk 0:00:37]}  Nh5 {[%clk 0:00:15]} 23. Nd6 {[%clk 0:00:36]}  Qd3 {[%clk 0:00:13]} 24. Bc4 {[%clk 0:00:31]}  Qc3 {[%clk 0:00:12]} 25. Nf7+ {[%clk 0:00:27]}  Rxf7 {[%clk 0:00:09]} 26. Rxf7 {[%clk 0:00:26]}  Qxc4 {[%clk 0:00:08]} 27. Rfb7 {[%clk 0:00:22]}  Rf8 {[%clk 0:00:05]} 28. Rb8 {[%clk 0:00:21]}  Bd3 {[%clk 0:00:05]} 29. Rxf8+ {[%clk 0:00:20]}  Bxf8 {[%clk 0:00:05]} 30. Be5+ {[%clk 0:00:21]}  Kg8 {[%clk 0:00:05]} 31. Qe3 {[%clk 0:00:14]}  Ng7 {[%clk 0:00:03]} 32. Rb8 {[%clk 0:00:13]}  Nf5 {[%clk 0:00:02]} 33. Qd2 {[%clk 0:00:12]}  Qe4 {[%clk 0:00:02]} 34. Bf4 {[%clk 0:00:10]}  Qe2 {[%clk 0:00:02]} 35. Qxe2 {[%clk 0:00:09]}  Bxe2 {[%clk 0:00:03]} 36. Ra8 {[%clk 0:00:09]}  Kf7 {[%clk 0:00:03]} 37. h3 {[%clk 0:00:07]}  Be7 {[%clk 0:00:03]} 38. g4 {[%clk 0:00:08]}  Nd4 {[%clk 0:00:03]} 39. Be5 {[%clk 0:00:07]}  Nf3+ {[%clk 0:00:03]} 40. Kg2 {[%clk 0:00:06]}  Nxe5 {[%clk 0:00:04]} 41. Kg3 {[%clk 0:00:07]}  Bf3 {[%clk 0:00:04]} 42. Rxa6 {[%clk 0:00:06]}  Bd5 {[%clk 0:00:03]} 43. Kf4 {[%clk 0:00:05]}  Nd3+ {[%clk 0:00:03]} 44. Ke3 {[%clk 0:00:06]}  Nb4 {[%clk 0:00:03]} 45. Ra7 {[%clk 0:00:05]}  Be6 {[%clk 0:00:03]} 46. f4 {[%clk 0:00:06]}  Kf6 {[%clk 0:00:03]} 47. Ke4 {[%clk 0:00:06]}  Bd5+ {[%clk 0:00:03]} 48. Ke3 {[%clk 0:00:06]}  Be6 {[%clk 0:00:04]} 49. Ke4 {[%clk 0:00:06]}  Nc6 {[%clk 0:00:04]} 50. f5 {[%clk 0:00:06]}  Nxa7 {[%clk 0:00:04]} 0-1


[Site "https://www.chess.com"]

[Event "Titled Tuesday Blitz December 13 Early 2022"]
[White "Rohith Krishna S"]
[Black "Bochnicka, Vladimir"]
[WhiteFideId "46617051"]
[BlackFideId "14943450"]
[WhiteElo "2270"]
[BlackElo "2239"]
[Result "1-0"]
[Round "02"]
[TimeControl "180+1"]
[Date "2022.12.14"]
[WhiteClock "0:01:59"]
[BlackClock "0:00:23"]

1. e4 {[%clk 0:02:54]}  c5 {[%clk 0:02:59]} 2. Nf3 {[%clk 0:02:53]}  Nc6 {[%clk 0:03:00]} 3. d4 {[%clk 0:02:54]}  cxd4 {[%clk 0:03:01]} 4. Nxd4 {[%clk 0:02:55]}  e5 {[%clk 0:03:01]} 5. Nb3 {[%clk 0:02:55]}  Nf6 {[%clk 0:02:56]} 6. Bd3 {[%clk 0:02:53]}  d5 {[%clk 0:02:42]} 7. exd5 {[%clk 0:02:54]}  Qxd5 {[%clk 0:02:41]} 8. O-O {[%clk 0:02:55]}  Bg4 {[%clk 0:02:33]} 9. f3 {[%clk 0:02:53]}  Be6 {[%clk 0:02:25]} 10. Nc3 {[%clk 0:02:54]}  Qd7 {[%clk 0:02:24]} 11. Bg5 {[%clk 0:02:51]}  Be7 {[%clk 0:02:24]} 12. Qe1 {[%clk 0:02:50]}  O-O {[%clk 0:02:11]} 13. Rd1 {[%clk 0:02:50]}  Qc7 {[%clk 0:02:08]} 14. Qh4 {[%clk 0:02:50]}  h6 {[%clk 0:01:56]} 15. Bxh6 {[%clk 0:02:43]}  gxh6 {[%clk 0:01:27]} 16. Qxh6 {[%clk 0:02:44]}  Nd4 {[%clk 0:00:50]} 17. Nxd4 {[%clk 0:02:32]}  exd4 {[%clk 0:00:50]} 18. Ne4 {[%clk 0:02:33]}  Nd5 {[%clk 0:00:34]} 19. Ng5 {[%clk 0:02:21]}  Rfd8 {[%clk 0:00:23]} 20. Qh7+ {[%clk 0:01:58]}  Kf8 {[%clk 0:00:23]} 21. Qh8# {[%clk 0:01:59]} 1-0


[Site "https://www.chess.com"]

[Event "Titled Tuesday Blitz December 13 Early 2022"]
[White "Rustemov, Alexander"]
[Black "Badelka, Olga"]
[WhiteFideId "4119002"]
[BlackFideId "13509926"]
[WhiteElo "2817"]
[BlackElo "2337"]
[Result "1/2-1/2"]
[Round "02"]
[TimeControl "180+1"]
[Date "2022.12.14"]
[WhiteClock "0:00:05"]
[BlackClock "0:00:06"]

1. d4 {[%clk 0:03:00]}  Nf6 {[%clk 0:02:59]} 2. c4 {[%clk 0:03:01]}  e6 {[%clk 0:02:59]} 3. Nf3 {[%clk 0:03:01]}  d5 {[%clk 0:02:58]} 4. Nc3 {[%clk 0:03:01]}  Nbd7 {[%clk 0:02:55]} 5. cxd5 {[%clk 0:03:01]}  exd5 {[%clk 0:02:55]} 6. Bg5 {[%clk 0:03:01]}  Be7 {[%clk 0:02:52]} 7. e3 {[%clk 0:03:01]}  h6 {[%clk 0:02:44]} 8. Bh4 {[%clk 0:03:01]}  O-O {[%clk 0:02:40]} 9. Qc2 {[%clk 0:03:00]}  c6 {[%clk 0:02:36]} 10. Bd3 {[%clk 0:03:00]}  Re8 {[%clk 0:02:36]} 11. O-O {[%clk 0:02:56]}  Ne4 {[%clk 0:02:30]} 12. Bxe4 {[%clk 0:02:56]}  Bxh4 {[%clk 0:02:30]} 13. Bh7+ {[%clk 0:02:55]}  Kh8 {[%clk 0:02:31]} 14. Nxh4 {[%clk 0:02:56]}  Qxh4 {[%clk 0:02:31]} 15. Bd3 {[%clk 0:02:56]}  Qe7 {[%clk 0:02:31]} 16. Rae1 {[%clk 0:02:55]}  Nf6 {[%clk 0:02:30]} 17. f3 {[%clk 0:02:53]}  Bd7 {[%clk 0:02:25]} 18. Qf2 {[%clk 0:02:48]}  c5 {[%clk 0:02:03]} 19. dxc5 {[%clk 0:02:36]}  Qxc5 {[%clk 0:02:03]} 20. e4 {[%clk 0:02:31]}  Qxf2+ {[%clk 0:01:34]} 21. Kxf2 {[%clk 0:02:32]}  dxe4 {[%clk 0:01:22]} 22. Nxe4 {[%clk 0:02:33]}  Nxe4+ {[%clk 0:01:22]} 23. Bxe4 {[%clk 0:02:30]}  Rac8 {[%clk 0:01:16]} 24. Rc1 {[%clk 0:02:03]}  b6 {[%clk 0:01:13]} 25. Rfd1 {[%clk 0:02:01]}  Be6 {[%clk 0:01:13]} 26. a3 {[%clk 0:02:00]}  g5 {[%clk 0:01:09]} 27. Rxc8 {[%clk 0:01:43]}  Rxc8 {[%clk 0:01:08]} 28. Ke3 {[%clk 0:01:42]}  Kg7 {[%clk 0:01:05]} 29. g3 {[%clk 0:01:41]}  f5 {[%clk 0:01:00]} 30. Bd3 {[%clk 0:01:37]}  Kf6 {[%clk 0:00:57]} 31. f4 {[%clk 0:01:37]}  Rd8 {[%clk 0:00:24]} 32. Rc1 {[%clk 0:01:31]}  Rd7 {[%clk 0:00:17]} 33. Rc6 {[%clk 0:01:28]}  Ke7 {[%clk 0:00:14]} 34. b4 {[%clk 0:01:20]}  Rd6 {[%clk 0:00:14]} 35. Rc7+ {[%clk 0:01:10]}  Rd7 {[%clk 0:00:13]} 36. Rc3 {[%clk 0:01:04]}  Kf6 {[%clk 0:00:12]} 37. Rc6 {[%clk 0:01:00]}  Ke7 {[%clk 0:00:11]} 38. Bb5 {[%clk 0:00:59]}  g4 {[%clk 0:00:04]} 39. Rc1 {[%clk 0:00:36]}  Rd5 {[%clk 0:00:04]} 40. Bc6 {[%clk 0:00:30]}  Rd6 {[%clk 0:00:04]} 41. Bg2 {[%clk 0:00:29]}  Bd7 {[%clk 0:00:04]} 42. Rc7 {[%clk 0:00:27]}  a5 {[%clk 0:00:04]} 43. Bf1 {[%clk 0:00:21]}  axb4 {[%clk 0:00:04]} 44. axb4 {[%clk 0:00:22]}  Rd1 {[%clk 0:00:03]} 45. Bb5 {[%clk 0:00:19]}  Ke6 {[%clk 0:00:03]} 46. Bxd7+ {[%clk 0:00:13]}  Rxd7 {[%clk 0:00:04]} 47. Rxd7 {[%clk 0:00:12]}  Kxd7 {[%clk 0:00:04]} 48. Kd4 {[%clk 0:00:13]}  Kd6 {[%clk 0:00:05]} 49. Kc4 {[%clk 0:00:09]}  Kc6 {[%clk 0:00:04]} 50. b5+ {[%clk 0:00:05]}  Kd6 {[%clk 0:00:04]} 51. Kd4 {[%clk 0:00:06]}  Ke6 {[%clk 0:00:04]} 52. Kc4 {[%clk 0:00:05]}  Kd6 {[%clk 0:00:05]} 53. Kd4 {[%clk 0:00:05]}  Ke6 {[%clk 0:00:05]} 54. Kc4 {[%clk 0:00:05]}  Kd6 {[%clk 0:00:06]} 1/2-1/2


[Site "https://www.chess.com"]

[Event "Titled Tuesday Blitz December 13 Early 2022"]
[White "Sai Han Thiha"]
[Black "Levine, David"]
[WhiteFideId "13012290"]
[BlackFideId "2011611"]
[WhiteElo "1954"]
[BlackElo "2118"]
[Result "1-0"]
[Round "02"]
[TimeControl "180+1"]
[Date "2022.12.14"]
[WhiteClock "0:00:42"]
[BlackClock "0:00:58"]

1. d4 {[%clk 0:03:00]}  d5 {[%clk 0:02:59]} 2. c4 {[%clk 0:03:00]}  dxc4 {[%clk 0:02:59]} 3. e3 {[%clk 0:02:59]}  e5 {[%clk 0:02:58]} 4. Bxc4 {[%clk 0:02:58]}  exd4 {[%clk 0:02:58]} 5. exd4 {[%clk 0:02:59]}  Bd6 {[%clk 0:02:58]} 6. Nf3 {[%clk 0:02:52]}  Nf6 {[%clk 0:02:58]} 7. O-O {[%clk 0:02:45]}  O-O {[%clk 0:02:58]} 8. h3 {[%clk 0:02:41]}  h6 {[%clk 0:02:57]} 9. Nc3 {[%clk 0:02:39]}  Nbd7 {[%clk 0:02:56]} 10. Qd3 {[%clk 0:02:36]}  Nb6 {[%clk 0:02:50]} 11. Bb3 {[%clk 0:02:35]}  Re8 {[%clk 0:02:41]} 12. Bxh6 {[%clk 0:01:50]}  c5 {[%clk 0:02:11]} 13. Qg6 {[%clk 0:01:47]}  Bf8 {[%clk 0:01:42]} 14. Bxf7+ {[%clk 0:01:31]}  Kh8 {[%clk 0:01:41]} 15. Bg5 {[%clk 0:01:09]}  Bd7 {[%clk 0:01:14]} 16. Ne4 {[%clk 0:00:59]}  Nbd5 {[%clk 0:01:05]} 17. Ne5 {[%clk 0:00:47]}  Be6 {[%clk 0:00:58]} 18. Bxe6 {[%clk 0:00:42]} 1-0


[Site "https://www.chess.com"]

[Event "Titled Tuesday Blitz December 13 Early 2022"]
[White "Sailer, Mike"]
[Black "D`Arruda, Ricardo D."]
[WhiteFideId "2012901"]
[BlackFideId "100692"]
[WhiteElo "2109"]
[BlackElo "2452"]
[Result "1/2-1/2"]
[Round "02"]
[TimeControl "180+1"]
[Date "2022.12.14"]
[WhiteClock "0:00:28"]
[BlackClock "0:00:44"]

1. Nf3 {[%clk 0:02:56]}  d5 {[%clk 0:02:59]} 2. c4 {[%clk 0:02:54]}  Nf6 {[%clk 0:02:59]} 3. g3 {[%clk 0:02:48]}  g6 {[%clk 0:02:59]} 4. Bg2 {[%clk 0:02:48]}  Bg7 {[%clk 0:02:59]} 5. O-O {[%clk 0:02:44]}  O-O {[%clk 0:02:59]} 6. cxd5 {[%clk 0:02:42]}  Nxd5 {[%clk 0:02:58]} 7. d4 {[%clk 0:02:42]}  Nb6 {[%clk 0:02:57]} 8. Nc3 {[%clk 0:02:42]}  Nc6 {[%clk 0:02:57]} 9. e3 {[%clk 0:02:35]}  e5 {[%clk 0:02:56]} 10. dxe5 {[%clk 0:02:34]}  Nxe5 {[%clk 0:02:56]} 11. Nxe5 {[%clk 0:02:29]}  Bxe5 {[%clk 0:02:54]} 12. Qe2 {[%clk 0:02:28]}  c6 {[%clk 0:02:50]} 13. Rd1 {[%clk 0:02:27]}  Qe7 {[%clk 0:02:50]} 14. e4 {[%clk 0:02:11]}  Be6 {[%clk 0:02:41]} 15. Be3 {[%clk 0:02:10]}  Nc4 {[%clk 0:02:37]} 16. Rac1 {[%clk 0:02:01]}  Nxe3 {[%clk 0:02:28]} 17. Qxe3 {[%clk 0:02:01]}  b6 {[%clk 0:02:13]} 18. f4 {[%clk 0:01:59]}  Bg7 {[%clk 0:02:07]} 19. e5 {[%clk 0:01:59]}  Rac8 {[%clk 0:02:03]} 20. Ne4 {[%clk 0:01:59]}  Bxa2 {[%clk 0:02:01]} 21. Nd6 {[%clk 0:01:53]}  Rc7 {[%clk 0:02:01]} 22. b3 {[%clk 0:01:47]}  Qe6 {[%clk 0:01:55]} 23. Rd3 {[%clk 0:01:20]}  f6 {[%clk 0:01:38]} 24. Ra1 {[%clk 0:01:16]}  fxe5 {[%clk 0:01:31]} 25. Rxa2 {[%clk 0:01:16]}  Rd8 {[%clk 0:01:25]} 26. fxe5 {[%clk 0:01:14]}  Bxe5 {[%clk 0:01:23]} 27. Ne4 {[%clk 0:01:06]}  Re8 {[%clk 0:01:15]} 28. Rad2 {[%clk 0:01:00]}  c5 {[%clk 0:01:12]} 29. Kh1 {[%clk 0:00:53]}  Bd4 {[%clk 0:01:10]} 30. Rxd4 {[%clk 0:00:51]}  cxd4 {[%clk 0:01:11]} 31. Qxd4 {[%clk 0:00:51]}  Rc1+ {[%clk 0:01:09]} 32. Rd1 {[%clk 0:00:51]}  Rxd1+ {[%clk 0:01:09]} 33. Qxd1 {[%clk 0:00:51]}  Kg7 {[%clk 0:01:06]} 34. h3 {[%clk 0:00:49]}  Re7 {[%clk 0:01:02]} 35. Qd4+ {[%clk 0:00:48]}  Qe5 {[%clk 0:01:02]} 36. Qd8 {[%clk 0:00:40]}  Rc7 {[%clk 0:00:51]} 37. Kh2 {[%clk 0:00:37]}  h5 {[%clk 0:00:50]} 38. h4 {[%clk 0:00:37]}  Re7 {[%clk 0:00:49]} 39. Ng5 {[%clk 0:00:36]}  Qf6 {[%clk 0:00:46]} 40. Qd5 {[%clk 0:00:29]}  Re2 {[%clk 0:00:43]} 41. Qd7+ {[%clk 0:00:29]}  Qe7 {[%clk 0:00:43]} 42. Qd4+ {[%clk 0:00:28]}  Qe5 {[%clk 0:00:42]} 43. Qd7+ {[%clk 0:00:28]}  Qe7 {[%clk 0:00:43]} 44. Qd4+ {[%clk 0:00:28]}  Qe5 {[%clk 0:00:44]} 45. Qd7+ {[%clk 0:00:28]}  Qe7 {[%clk 0:00:44]} 1/2-1/2


[Site "https://www.chess.com"]

[Event "Titled Tuesday Blitz December 13 Early 2022"]
[White "Sanchez, Robert"]
[Black "Agasarov, Benik"]
[WhiteFideId "2034360"]
[BlackFideId "13314823"]
[WhiteElo "2346"]
[BlackElo "2179"]
[Result "0-1"]
[Round "02"]
[TimeControl "180+1"]
[Date "2022.12.14"]
[WhiteClock "0:01:34"]
[BlackClock "0:01:08"]

1. Nf3 {[%clk 0:03:00]}  c5 {[%clk 0:02:57]} 2. e3 {[%clk 0:03:01]}  Nc6 {[%clk 0:02:56]} 3. c4 {[%clk 0:03:02]}  Nf6 {[%clk 0:02:54]} 4. Nc3 {[%clk 0:03:02]}  e6 {[%clk 0:02:45]} 5. b3 {[%clk 0:03:02]}  d5 {[%clk 0:02:45]} 6. Bb2 {[%clk 0:03:03]}  d4 {[%clk 0:02:45]} 7. Ne2 {[%clk 0:03:00]}  Nb4 {[%clk 0:02:33]} 8. Ng3 {[%clk 0:02:46]}  d3 {[%clk 0:02:32]} 9. Rc1 {[%clk 0:02:44]}  Nxa2 {[%clk 0:02:25]} 10. Ne5 {[%clk 0:02:38]}  Nxc1 {[%clk 0:02:25]} 11. Qxc1 {[%clk 0:02:37]}  Bd6 {[%clk 0:02:25]} 12. Nxd3 {[%clk 0:02:37]}  O-O {[%clk 0:02:24]} 13. f4 {[%clk 0:02:37]}  b6 {[%clk 0:02:24]} 14. Be2 {[%clk 0:02:36]}  Bb7 {[%clk 0:02:23]} 15. O-O {[%clk 0:02:37]}  Ne4 {[%clk 0:02:11]} 16. Nxe4 {[%clk 0:02:36]}  Bxe4 {[%clk 0:02:12]} 17. Ne5 {[%clk 0:02:35]}  Bb7 {[%clk 0:02:05]} 18. Bf3 {[%clk 0:02:25]}  Bxf3 {[%clk 0:02:04]} 19. Rxf3 {[%clk 0:02:25]}  Bxe5 {[%clk 0:02:03]} 20. Bxe5 {[%clk 0:02:25]}  f6 {[%clk 0:02:03]} 21. Bc3 {[%clk 0:02:25]}  Qd3 {[%clk 0:02:00]} 22. Qe1 {[%clk 0:02:22]}  a5 {[%clk 0:01:56]} 23. e4 {[%clk 0:02:21]}  Qd7 {[%clk 0:01:56]} 24. Rh3 {[%clk 0:02:21]}  a4 {[%clk 0:01:53]} 25. bxa4 {[%clk 0:02:19]}  Rxa4 {[%clk 0:01:50]} 26. Qh4 {[%clk 0:02:18]}  h6 {[%clk 0:01:50]} 27. Rg3 {[%clk 0:02:18]}  Kh8 {[%clk 0:01:48]} 28. Rg6 {[%clk 0:02:15]}  Rxc4 {[%clk 0:01:42]} 29. h3 {[%clk 0:01:58]}  Rxe4 {[%clk 0:01:39]} 30. Rxh6+ {[%clk 0:01:48]}  gxh6 {[%clk 0:01:25]} 31. Qxh6+ {[%clk 0:01:48]}  Kg8 {[%clk 0:01:25]} 32. Qg6+ {[%clk 0:01:46]}  Qg7 {[%clk 0:01:25]} 33. Qxe4 {[%clk 0:01:47]}  Qf7 {[%clk 0:01:19]} 34. g4 {[%clk 0:01:43]}  b5 {[%clk 0:01:14]} 35. g5 {[%clk 0:01:43]}  fxg5 {[%clk 0:01:12]} 36. Qe5 {[%clk 0:01:34]}  Kh7 {[%clk 0:01:08]} 0-1


[Site "https://www.chess.com"]

[Event "Titled Tuesday Blitz December 13 Early 2022"]
[White "Schut, Han"]
[Black "Fecker, Noah"]
[WhiteFideId "1005561"]
[BlackFideId "1334263"]
[WhiteElo "2024"]
[BlackElo "2291"]
[Result "1-0"]
[Round "02"]
[TimeControl "180+1"]
[Date "2022.12.14"]
[WhiteClock "0:00:19"]
[BlackClock "0:00:54"]

1. e4 {[%clk 0:03:00]}  e6 {[%clk 0:02:59]} 2. d4 {[%clk 0:03:00]}  b6 {[%clk 0:03:00]} 3. Bd3 {[%clk 0:02:59]}  Bb7 {[%clk 0:03:00]} 4. Qe2 {[%clk 0:02:59]}  Nf6 {[%clk 0:02:57]} 5. f4 {[%clk 0:02:58]}  d5 {[%clk 0:02:57]} 6. e5 {[%clk 0:02:58]}  Ne4 {[%clk 0:02:57]} 7. Nf3 {[%clk 0:02:54]}  c5 {[%clk 0:02:56]} 8. c3 {[%clk 0:02:51]}  Be7 {[%clk 0:02:50]} 9. O-O {[%clk 0:02:41]}  Nc6 {[%clk 0:02:49]} 10. Nbd2 {[%clk 0:02:41]}  Nxd2 {[%clk 0:02:47]} 11. Bxd2 {[%clk 0:02:41]}  Qd7 {[%clk 0:02:40]} 12. a3 {[%clk 0:02:40]}  c4 {[%clk 0:02:35]} 13. Bc2 {[%clk 0:02:37]}  Na5 {[%clk 0:02:35]} 14. Ng5 {[%clk 0:02:25]}  h6 {[%clk 0:02:11]} 15. Nxf7 {[%clk 0:01:46]}  Kxf7 {[%clk 0:02:12]} 16. Qh5+ {[%clk 0:01:45]}  Kg8 {[%clk 0:02:09]} 17. f5 {[%clk 0:01:41]}  Qe8 {[%clk 0:01:45]} 18. Qg4 {[%clk 0:01:27]}  h5 {[%clk 0:01:44]} 19. Qg3 {[%clk 0:01:22]}  h4 {[%clk 0:01:44]} 20. Qh3 {[%clk 0:01:12]}  Nb3 {[%clk 0:01:40]} 21. Bxb3 {[%clk 0:00:41]}  cxb3 {[%clk 0:01:41]} 22. f6 {[%clk 0:00:39]}  Bc8 {[%clk 0:01:14]} 23. f7+ {[%clk 0:00:36]}  Qxf7 {[%clk 0:01:14]} 24. Rxf7 {[%clk 0:00:37]}  Kxf7 {[%clk 0:01:15]} 25. Rf1+ {[%clk 0:00:37]}  Ke8 {[%clk 0:01:15]} 26. Qg4 {[%clk 0:00:36]}  g5 {[%clk 0:01:10]} 27. Bxg5 {[%clk 0:00:33]}  Ba6 {[%clk 0:01:00]} 28. Bxe7 {[%clk 0:00:19]}  Bxf1 {[%clk 0:00:54]} 29. Bf6 {[%clk 0:00:19]} 1-0


[Site "https://www.chess.com"]

[Event "Titled Tuesday Blitz December 13 Early 2022"]
[White "Shipov, Sergei"]
[Black "Manukian, Artak"]
[WhiteFideId "4113624"]
[BlackFideId "13301373"]
[WhiteElo "2795"]
[BlackElo "2130"]
[Result "0-1"]
[Round "02"]
[TimeControl "180+1"]
[Date "2022.12.14"]
[WhiteClock "0:00:01"]
[BlackClock "0:00:13"]

1. d4 {[%clk 0:03:00]}  d5 {[%clk 0:02:59]} 2. c4 {[%clk 0:03:00]}  dxc4 {[%clk 0:02:55]} 3. Nf3 {[%clk 0:03:00]}  Nf6 {[%clk 0:02:55]} 4. e3 {[%clk 0:03:00]}  e6 {[%clk 0:02:56]} 5. Bxc4 {[%clk 0:03:00]}  c5 {[%clk 0:02:56]} 6. Qe2 {[%clk 0:03:00]}  a6 {[%clk 0:02:56]} 7. dxc5 {[%clk 0:03:00]}  Bxc5 {[%clk 0:02:55]} 8. O-O {[%clk 0:03:00]}  b5 {[%clk 0:02:53]} 9. Bd3 {[%clk 0:03:00]}  O-O {[%clk 0:02:52]} 10. e4 {[%clk 0:02:59]}  Be7 {[%clk 0:02:39]} 11. e5 {[%clk 0:02:59]}  Nd5 {[%clk 0:02:38]} 12. Qe4 {[%clk 0:02:50]}  g6 {[%clk 0:02:38]} 13. Bh6 {[%clk 0:02:50]}  Re8 {[%clk 0:02:37]} 14. Nbd2 {[%clk 0:02:50]}  Nd7 {[%clk 0:02:35]} 15. Nb3 {[%clk 0:02:43]}  Bb7 {[%clk 0:02:19]} 16. Rad1 {[%clk 0:02:38]}  Bf8 {[%clk 0:02:05]} 17. Bxf8 {[%clk 0:02:36]}  Rxf8 {[%clk 0:02:05]} 18. h4 {[%clk 0:02:27]}  Qe7 {[%clk 0:01:57]} 19. Rfe1 {[%clk 0:02:24]}  Rfd8 {[%clk 0:01:52]} 20. h5 {[%clk 0:02:21]}  Rac8 {[%clk 0:01:43]} 21. a3 {[%clk 0:01:47]}  b4 {[%clk 0:01:33]} 22. a4 {[%clk 0:01:43]}  N7b6 {[%clk 0:01:23]} 23. Qg4 {[%clk 0:01:40]}  Nxa4 {[%clk 0:01:14]} 24. hxg6 {[%clk 0:01:39]}  hxg6 {[%clk 0:01:14]} 25. Bxg6 {[%clk 0:01:38]}  fxg6 {[%clk 0:01:11]} 26. Qxg6+ {[%clk 0:01:38]}  Qg7 {[%clk 0:01:11]} 27. Qxe6+ {[%clk 0:01:38]}  Qf7 {[%clk 0:01:03]} 28. Qg4+ {[%clk 0:01:36]}  Qg7 {[%clk 0:00:55]} 29. Ng5 {[%clk 0:01:31]}  Re8 {[%clk 0:00:43]} 30. Nd4 {[%clk 0:00:51]}  Nxb2 {[%clk 0:00:28]} 31. Nf5 {[%clk 0:00:48]}  Qg6 {[%clk 0:00:27]} 32. Rd4 {[%clk 0:00:40]}  Rc4 {[%clk 0:00:26]} 33. Rxc4 {[%clk 0:00:29]}  Nxc4 {[%clk 0:00:25]} 34. Nh4 {[%clk 0:00:29]}  Qg7 {[%clk 0:00:21]} 35. e6 {[%clk 0:00:07]}  Ne5 {[%clk 0:00:17]} 36. Rxe5 {[%clk 0:00:06]}  Nf6 {[%clk 0:00:15]} 37. Qf5 {[%clk 0:00:04]}  b3 {[%clk 0:00:13]} 38. e7 {[%clk 0:00:01]}  b2 {[%clk 0:00:13]} 0-1


[Site "https://www.chess.com"]

[Event "Titled Tuesday Blitz December 13 Early 2022"]
[White "Skliarov, Viktor"]
[Black "Svane, Rasmus"]
[WhiteFideId "14106736"]
[BlackFideId "4657101"]
[WhiteElo "2284"]
[BlackElo "2674"]
[Result "0-1"]
[Round "02"]
[TimeControl "180+1"]
[Date "2022.12.13"]
[WhiteClock "0:00:03"]
[BlackClock "0:00:53"]

1. e4 {[%clk 0:03:00]}  c6 {[%clk 0:02:59]} 2. d4 {[%clk 0:03:00]}  d5 {[%clk 0:03:00]} 3. e5 {[%clk 0:03:01]}  Bf5 {[%clk 0:03:00]} 4. Nf3 {[%clk 0:03:01]}  e6 {[%clk 0:03:01]} 5. Be2 {[%clk 0:03:01]}  Ne7 {[%clk 0:03:01]} 6. O-O {[%clk 0:03:01]}  Ng6 {[%clk 0:03:02]} 7. Ne1 {[%clk 0:02:58]}  Ne7 {[%clk 0:03:01]} 8. Nf3 {[%clk 0:02:52]}  Nd7 {[%clk 0:03:01]} 9. a4 {[%clk 0:02:50]}  a6 {[%clk 0:02:56]} 10. a5 {[%clk 0:02:50]}  c5 {[%clk 0:02:56]} 11. c4 {[%clk 0:02:30]}  Rc8 {[%clk 0:02:46]} 12. Nc3 {[%clk 0:02:15]}  cxd4 {[%clk 0:02:41]} 13. Nxd4 {[%clk 0:02:14]}  dxc4 {[%clk 0:02:41]} 14. Nxf5 {[%clk 0:01:46]}  Nxf5 {[%clk 0:02:42]} 15. Bf4 {[%clk 0:01:46]}  Be7 {[%clk 0:02:19]} 16. Qa4 {[%clk 0:01:38]}  O-O {[%clk 0:02:12]} 17. Rfd1 {[%clk 0:01:38]}  Rc7 {[%clk 0:02:04]} 18. Bxc4 {[%clk 0:01:35]}  Qc8 {[%clk 0:02:03]} 19. Bf1 {[%clk 0:01:29]}  Nc5 {[%clk 0:02:03]} 20. Qc2 {[%clk 0:01:20]}  Rd8 {[%clk 0:02:03]} 21. Rxd8+ {[%clk 0:01:18]}  Qxd8 {[%clk 0:02:04]} 22. Rd1 {[%clk 0:01:18]}  Nd4 {[%clk 0:01:59]} 23. Qd2 {[%clk 0:00:58]}  Rd7 {[%clk 0:01:57]} 24. Qe3 {[%clk 0:00:58]}  Nc6 {[%clk 0:01:53]} 25. Rxd7 {[%clk 0:00:43]}  Qxd7 {[%clk 0:01:54]} 26. h3 {[%clk 0:00:43]}  h6 {[%clk 0:01:54]} 27. g4 {[%clk 0:00:37]}  Qd8 {[%clk 0:01:16]} 28. Bg2 {[%clk 0:00:29]}  Nd3 {[%clk 0:01:16]} 29. Bxc6 {[%clk 0:00:25]}  Bc5 {[%clk 0:01:15]} 30. Qf3 {[%clk 0:00:05]}  Bxf2+ {[%clk 0:00:57]} 31. Kh2 {[%clk 0:00:05]}  bxc6 {[%clk 0:00:57]} 32. Be3 {[%clk 0:00:03]}  Bxe3 {[%clk 0:00:53]} 33. Qxe3 {[%clk 0:00:04]}  Nxb2 {[%clk 0:00:54]} 34. Ne4 {[%clk 0:00:03]}  Nc4 {[%clk 0:00:52]} 35. Qc5 {[%clk 0:00:02]}  Qd5 {[%clk 0:00:50]} 36. Qxd5 {[%clk 0:00:01]}  cxd5 {[%clk 0:00:51]} 37. Nc5 {[%clk 0:00:02]}  Nxa5 {[%clk 0:00:52]} 38. Nxa6 {[%clk 0:00:03]}  Nc6 {[%clk 0:00:52]} 39. Nc5 {[%clk 0:00:03]}  Nxe5 {[%clk 0:00:53]} 0-1


[Site "https://www.chess.com"]